[Event "Titled Tuesday Blitz December 20 Late 2022"]
[White "Skvortsov, Andrei"]
[Black "Gatterer, Florian"]
[WhiteFideId "24108600"]
[BlackFideId "811688"]
[WhiteElo "2285"]
[BlackElo "2218"]
[Result "0-1"]
[Round "02"]
[TimeControl "180+1"]
[Date "2022.12.21"]
[WhiteClock "0:00:06"]
[BlackClock "0:00:05"]

1. d4 {[%clk 0:02:57]}  Nf6 {[%clk 0:02:59]} 2. Nf3 {[%clk 0:02:57]}  d5 {[%clk 0:02:58]} 3. c4 {[%clk 0:02:58]}  e6 {[%clk 0:02:58]} 4. Nc3 {[%clk 0:02:57]}  c5 {[%clk 0:02:56]} 5. cxd5 {[%clk 0:02:53]}  Nxd5 {[%clk 0:02:57]} 6. e4 {[%clk 0:02:53]}  Nxc3 {[%clk 0:02:57]} 7. bxc3 {[%clk 0:02:54]}  cxd4 {[%clk 0:02:57]} 8. cxd4 {[%clk 0:02:53]}  Bb4+ {[%clk 0:02:57]} 9. Bd2 {[%clk 0:02:53]}  Bxd2+ {[%clk 0:02:57]} 10. Qxd2 {[%clk 0:02:54]}  O-O {[%clk 0:02:58]} 11. Bc4 {[%clk 0:02:51]}  Nd7 {[%clk 0:02:57]} 12. O-O {[%clk 0:02:50]}  b6 {[%clk 0:02:58]} 13. d5 {[%clk 0:02:49]}  Nc5 {[%clk 0:02:53]} 14. Qe3 {[%clk 0:02:45]}  exd5 {[%clk 0:02:44]} 15. Bxd5 {[%clk 0:02:46]}  Bb7 {[%clk 0:02:45]} 16. Rfd1 {[%clk 0:02:43]}  Bxd5 {[%clk 0:02:44]} 17. exd5 {[%clk 0:02:44]}  Re8 {[%clk 0:02:37]} 18. Qf4 {[%clk 0:02:43]}  Qd7 {[%clk 0:02:13]} 19. Ne5 {[%clk 0:02:28]}  Qe7 {[%clk 0:01:53]} 20. Nf3 {[%clk 0:02:08]}  Qd7 {[%clk 0:01:48]} 21. h3 {[%clk 0:02:05]}  Re4 {[%clk 0:01:48]} 22. Qd2 {[%clk 0:01:54]}  Rae8 {[%clk 0:01:44]} 23. Re1 {[%clk 0:01:49]}  Rxe1+ {[%clk 0:01:28]} 24. Rxe1 {[%clk 0:01:50]}  Rxe1+ {[%clk 0:01:27]} 25. Qxe1 {[%clk 0:01:44]}  h6 {[%clk 0:01:17]} 26. Qe5 {[%clk 0:01:39]}  Nd3 {[%clk 0:01:11]} 27. Qd4 {[%clk 0:01:35]}  Nc5 {[%clk 0:01:05]} 28. Ne5 {[%clk 0:01:35]}  Qd6 {[%clk 0:00:58]} 29. Nc4 {[%clk 0:01:34]}  Qf6 {[%clk 0:00:50]} 30. Qxf6 {[%clk 0:01:27]}  gxf6 {[%clk 0:00:50]} 31. f3 {[%clk 0:01:24]}  Nd3 {[%clk 0:00:42]} 32. Kf1 {[%clk 0:01:20]}  Kf8 {[%clk 0:00:42]} 33. g3 {[%clk 0:01:17]}  Nb4 {[%clk 0:00:41]} 34. Ne3 {[%clk 0:01:13]}  Nxa2 {[%clk 0:00:34]} 35. Nf5 {[%clk 0:01:13]}  h5 {[%clk 0:00:30]} 36. Ke2 {[%clk 0:01:09]}  Nb4 {[%clk 0:00:30]} 37. d6 {[%clk 0:01:09]}  Ke8 {[%clk 0:00:30]} 38. g4 {[%clk 0:01:04]}  hxg4 {[%clk 0:00:29]} 39. fxg4 {[%clk 0:01:05]}  Nd5 {[%clk 0:00:27]} 40. h4 {[%clk 0:01:04]}  a5 {[%clk 0:00:19]} 41. Kd3 {[%clk 0:01:04]}  Nf4+ {[%clk 0:00:16]} 42. Kc4 {[%clk 0:00:58]}  Kd7 {[%clk 0:00:16]} 43. h5 {[%clk 0:00:58]}  Nh3 {[%clk 0:00:16]} 44. Kb5 {[%clk 0:00:57]}  Ng5 {[%clk 0:00:16]} 45. h6 {[%clk 0:00:53]}  Nh7 {[%clk 0:00:15]} 46. Kc4 {[%clk 0:00:44]}  a4 {[%clk 0:00:14]} 47. Kb4 {[%clk 0:00:44]}  b5 {[%clk 0:00:14]} 48. Ka3 {[%clk 0:00:32]}  Ng5 {[%clk 0:00:14]} 49. Ng3 {[%clk 0:00:29]}  Nh7 {[%clk 0:00:10]} 50. Ne4 {[%clk 0:00:29]}  Ke6 {[%clk 0:00:07]} 51. Kb4 {[%clk 0:00:28]}  Kd7 {[%clk 0:00:07]} 52. Kc3 {[%clk 0:00:21]}  a3 {[%clk 0:00:06]} 53. Kb3 {[%clk 0:00:21]}  b4 {[%clk 0:00:06]} 54. Ka2 {[%clk 0:00:19]}  Ke6 {[%clk 0:00:06]} 55. Kb3 {[%clk 0:00:19]}  Kd7 {[%clk 0:00:06]} 56. Kc2 {[%clk 0:00:17]}  Ke6 {[%clk 0:00:06]} 57. Nd2 {[%clk 0:00:16]}  Kxd6 {[%clk 0:00:05]} 58. Kb3 {[%clk 0:00:17]}  Ke5 {[%clk 0:00:05]} 59. Kxb4 {[%clk 0:00:16]}  Kf4 {[%clk 0:00:05]} 60. Kxa3 {[%clk 0:00:16]}  Kxg4 {[%clk 0:00:06]} 61. Kb3 {[%clk 0:00:17]}  Kg5 {[%clk 0:00:06]} 62. Kc3 {[%clk 0:00:18]}  Kxh6 {[%clk 0:00:07]} 63. Kd3 {[%clk 0:00:18]}  Kg6 {[%clk 0:00:08]} 64. Ke4 {[%clk 0:00:19]}  Ng5+ {[%clk 0:00:08]} 65. Kf4 {[%clk 0:00:20]}  Ne6+ {[%clk 0:00:09]} 66. Kg3 {[%clk 0:00:20]}  f5 {[%clk 0:00:10]} 67. Nf3 {[%clk 0:00:21]}  Kf6 {[%clk 0:00:10]} 68. Nd2 {[%clk 0:00:21]}  Nd4 {[%clk 0:00:09]} 69. Kf4 {[%clk 0:00:21]}  Ne6+ {[%clk 0:00:09]} 70. Ke3 {[%clk 0:00:22]}  f4+ {[%clk 0:00:10]} 71. Ke4 {[%clk 0:00:22]}  Kg5 {[%clk 0:00:11]} 72. Nf3+ {[%clk 0:00:22]}  Kg4 {[%clk 0:00:10]} 73. Ne5+ {[%clk 0:00:22]}  Kg3 {[%clk 0:00:11]} 74. Kd3 {[%clk 0:00:20]}  Nc5+ {[%clk 0:00:10]} 75. Ke2 {[%clk 0:00:20]}  Ne4 {[%clk 0:00:09]} 76. Kf1 {[%clk 0:00:14]}  f5 {[%clk 0:00:09]} 77. Nd3 {[%clk 0:00:14]}  f3 {[%clk 0:00:08]} 78. Ke1 {[%clk 0:00:14]}  f2+ {[%clk 0:00:08]} 79. Ke2 {[%clk 0:00:15]}  Kg2 {[%clk 0:00:06]} 80. Nf4+ {[%clk 0:00:15]}  Kg1 {[%clk 0:00:06]} 81. Nh3+ {[%clk 0:00:16]}  Kg2 {[%clk 0:00:07]} 82. Nf4+ {[%clk 0:00:14]}  Kg3 {[%clk 0:00:07]} 83. Nh5+ {[%clk 0:00:14]}  Kg4 {[%clk 0:00:06]} 84. Ng7 {[%clk 0:00:13]}  f4 {[%clk 0:00:06]} 85. Ne6 {[%clk 0:00:07]}  Kg3 {[%clk 0:00:06]} 86. Nd4 {[%clk 0:00:07]}  Kg2 {[%clk 0:00:06]} 87. Kd3 {[%clk 0:00:05]}  f1=Q+ {[%clk 0:00:06]} 88. Kxe4 {[%clk 0:00:06]}  f3 {[%clk 0:00:06]} 89. Nf5 {[%clk 0:00:05]}  f2 {[%clk 0:00:06]} 90. Ne3+ {[%clk 0:00:05]}  Kg1 {[%clk 0:00:06]} 91. Kf3 {[%clk 0:00:05]}  Qe1 {[%clk 0:00:05]} 92. Ng4 {[%clk 0:00:06]}  f1=Q+ {[%clk 0:00:05]} 0-1


[Site "https://www.chess.com"]

[Event "Titled Tuesday Blitz December 20 Late 2022"]
[White "Szyszylo, Rafal"]
[Black "Shapiro, Bryan"]
[WhiteFideId "1109626"]
[BlackFideId "2087740"]
[WhiteElo "1981"]
[BlackElo "1899"]
[Result "1-0"]
[Round "02"]
[TimeControl "180+1"]
[Date "2022.12.21"]
[WhiteClock "0:00:12"]
[BlackClock "0:00:01"]

1. e4 {[%clk 0:03:00]}  e6 {[%clk 0:03:00]} 2. d4 {[%clk 0:02:56]}  b6 {[%clk 0:02:57]} 3. Nf3 {[%clk 0:02:54]}  Bb7 {[%clk 0:02:56]} 4. Bd3 {[%clk 0:02:54]}  d6 {[%clk 0:02:55]} 5. O-O {[%clk 0:02:54]}  Nd7 {[%clk 0:02:56]} 6. Re1 {[%clk 0:02:54]}  g6 {[%clk 0:02:57]} 7. Bg5 {[%clk 0:02:50]}  Be7 {[%clk 0:02:51]} 8. Bxe7 {[%clk 0:02:49]}  Qxe7 {[%clk 0:02:52]} 9. Qd2 {[%clk 0:02:44]}  e5 {[%clk 0:02:50]} 10. c3 {[%clk 0:02:43]}  Ngf6 {[%clk 0:02:46]} 11. Na3 {[%clk 0:02:16]}  O-O {[%clk 0:02:37]} 12. Qc2 {[%clk 0:01:54]}  a6 {[%clk 0:02:27]} 13. Nc4 {[%clk 0:01:53]}  Rfe8 {[%clk 0:02:21]} 14. Ncd2 {[%clk 0:01:46]}  Nh5 {[%clk 0:02:19]} 15. g3 {[%clk 0:01:43]}  Nhf6 {[%clk 0:02:18]} 16. a4 {[%clk 0:01:42]}  Rac8 {[%clk 0:02:13]} 17. Rad1 {[%clk 0:01:41]}  Qf8 {[%clk 0:02:02]} 18. h4 {[%clk 0:01:39]}  exd4 {[%clk 0:01:47]} 19. cxd4 {[%clk 0:01:35]}  c5 {[%clk 0:01:47]} 20. d5 {[%clk 0:01:25]}  Ng4 {[%clk 0:01:23]} 21. b3 {[%clk 0:01:19]}  Nge5 {[%clk 0:01:22]} 22. Bf1 {[%clk 0:01:13]}  Re7 {[%clk 0:01:06]} 23. Nxe5 {[%clk 0:01:12]}  Nxe5 {[%clk 0:01:06]} 24. f4 {[%clk 0:01:12]}  Ng4 {[%clk 0:01:04]} 25. Nc4 {[%clk 0:01:11]}  Qd8 {[%clk 0:00:52]} 26. Bh3 {[%clk 0:01:09]}  h5 {[%clk 0:00:47]} 27. Bxg4 {[%clk 0:01:08]}  hxg4 {[%clk 0:00:48]} 28. e5 {[%clk 0:00:48]}  dxe5 {[%clk 0:00:48]} 29. d6 {[%clk 0:00:46]}  Re6 {[%clk 0:00:40]} 30. fxe5 {[%clk 0:00:45]}  b5 {[%clk 0:00:36]} 31. axb5 {[%clk 0:00:43]}  axb5 {[%clk 0:00:37]} 32. Nd2 {[%clk 0:00:37]}  Qd7 {[%clk 0:00:37]} 33. Ne4 {[%clk 0:00:34]}  Qc6 {[%clk 0:00:35]} 34. d7 {[%clk 0:00:26]}  Rd8 {[%clk 0:00:29]} 35. Qxc5 {[%clk 0:00:26]}  Ba6 {[%clk 0:00:17]} 36. Qxc6 {[%clk 0:00:26]}  Rxc6 {[%clk 0:00:18]} 37. Nf6+ {[%clk 0:00:25]}  Kg7 {[%clk 0:00:17]} 38. Ne8+ {[%clk 0:00:25]}  Kf8 {[%clk 0:00:17]} 39. Nf6 {[%clk 0:00:26]}  b4 {[%clk 0:00:15]} 40. Rd6 {[%clk 0:00:25]}  Rxd6 {[%clk 0:00:13]} 41. exd6 {[%clk 0:00:26]}  Bb5 {[%clk 0:00:14]} 42. Re7 {[%clk 0:00:21]}  Kg7 {[%clk 0:00:14]} 43. Ne8+ {[%clk 0:00:20]}  Kf8 {[%clk 0:00:13]} 44. Nf6 {[%clk 0:00:20]}  Kg7 {[%clk 0:00:14]} 45. Re8 {[%clk 0:00:17]}  Rxd7 {[%clk 0:00:06]} 46. Nxd7 {[%clk 0:00:16]}  Bxd7 {[%clk 0:00:07]} 47. Re7 {[%clk 0:00:16]}  Be6 {[%clk 0:00:03]} 48. Rxe6 {[%clk 0:00:13]}  f6 {[%clk 0:00:01]} 49. d7 {[%clk 0:00:12]} 1-0


[Site "https://www.chess.com"]

[Event "Titled Tuesday Blitz December 20 Late 2022"]
[White "Taboas Rodriguez, Daniel"]
[Black "Rasulov, Vugar"]
[WhiteFideId "2208466"]
[BlackFideId "13402390"]
[WhiteElo "2329"]
[BlackElo "2509"]
[Result "0-1"]
[Round "02"]
[TimeControl "180+1"]
[Date "2022.12.20"]
[WhiteClock "0:00:45"]
[BlackClock "0:01:39"]

1. d4 {[%clk 0:02:59]}  Nf6 {[%clk 0:02:59]} 2. Nf3 {[%clk 0:02:59]}  g6 {[%clk 0:02:59]} 3. c4 {[%clk 0:02:59]}  Bg7 {[%clk 0:02:59]} 4. Nc3 {[%clk 0:03:00]}  d5 {[%clk 0:02:59]} 5. cxd5 {[%clk 0:03:01]}  Nxd5 {[%clk 0:03:00]} 6. e4 {[%clk 0:03:02]}  Nxc3 {[%clk 0:03:00]} 7. bxc3 {[%clk 0:03:03]}  c5 {[%clk 0:03:00]} 8. Be3 {[%clk 0:03:03]}  O-O {[%clk 0:02:59]} 9. Be2 {[%clk 0:03:03]}  Qa5 {[%clk 0:02:59]} 10. O-O {[%clk 0:03:03]}  Rd8 {[%clk 0:02:55]} 11. Qb3 {[%clk 0:03:03]}  Nc6 {[%clk 0:02:42]} 12. Rad1 {[%clk 0:03:02]}  cxd4 {[%clk 0:02:35]} 13. cxd4 {[%clk 0:03:03]}  Qb4 {[%clk 0:02:34]} 14. d5 {[%clk 0:02:57]}  Qxb3 {[%clk 0:02:33]} 15. axb3 {[%clk 0:02:58]}  Nb4 {[%clk 0:02:31]} 16. Bc5 {[%clk 0:02:49]}  Na2 {[%clk 0:02:31]} 17. Bxe7 {[%clk 0:02:48]}  Rd7 {[%clk 0:02:27]} 18. d6 {[%clk 0:02:47]}  Nc3 {[%clk 0:02:27]} 19. Rd2 {[%clk 0:02:47]}  Nxe4 {[%clk 0:02:16]} 20. Rd3 {[%clk 0:02:35]}  b6 {[%clk 0:02:10]} 21. Rfd1 {[%clk 0:02:05]}  Ba6 {[%clk 0:02:03]} 22. Kf1 {[%clk 0:01:12]}  Bxd3 {[%clk 0:02:00]} 23. Rxd3 {[%clk 0:01:13]}  Re8 {[%clk 0:01:54]} 24. Rd5 {[%clk 0:00:53]}  Nc3 {[%clk 0:01:52]} 25. Rd2 {[%clk 0:00:45]}  Nxe2 {[%clk 0:01:41]} 26. Kxe2 {[%clk 0:00:45]}  Bf6 {[%clk 0:01:39]} 0-1


[Site "https://www.chess.com"]

[Event "Titled Tuesday Blitz December 20 Late 2022"]
[White "Tang, Andrew"]
[Black "Bambino Filho, Antonio Carlos"]
[WhiteFideId "2059630"]
[BlackFideId "2113163"]
[WhiteElo "2582"]
[BlackElo "2405"]
[Result "1-0"]
[Round "02"]
[TimeControl "180+1"]
[Date "2022.12.21"]
[WhiteClock "0:00:02"]
[BlackClock "0:00:04"]

1. a4 {[%clk 0:03:00]}  e5 {[%clk 0:02:58]} 2. Ra3 {[%clk 0:02:54]}  d5 {[%clk 0:02:52]} 3. Rg3 {[%clk 0:02:51]}  Nf6 {[%clk 0:02:50]} 4. b3 {[%clk 0:02:50]}  Ne4 {[%clk 0:02:48]} 5. Bb2 {[%clk 0:02:51]}  Nxg3 {[%clk 0:02:48]} 6. hxg3 {[%clk 0:02:52]}  Bd6 {[%clk 0:02:43]} 7. e3 {[%clk 0:02:45]}  Qe7 {[%clk 0:02:42]} 8. Qh5 {[%clk 0:02:35]}  Nd7 {[%clk 0:02:39]} 9. f4 {[%clk 0:02:28]}  g6 {[%clk 0:02:37]} 10. Qh6 {[%clk 0:02:27]}  Qf8 {[%clk 0:02:32]} 11. Qh4 {[%clk 0:02:26]}  Qe7 {[%clk 0:02:32]} 12. Qh6 {[%clk 0:02:25]}  Qf8 {[%clk 0:02:32]} 13. Qh2 {[%clk 0:02:17]}  Qe7 {[%clk 0:02:28]} 14. Nf3 {[%clk 0:02:16]}  f6 {[%clk 0:02:28]} 15. Be2 {[%clk 0:02:11]}  O-O {[%clk 0:02:24]} 16. Nc3 {[%clk 0:00:56]}  c6 {[%clk 0:02:24]} 17. e4 {[%clk 0:00:56]}  exf4 {[%clk 0:02:03]} 18. gxf4 {[%clk 0:00:53]}  dxe4 {[%clk 0:01:34]} 19. Nxe4 {[%clk 0:00:53]}  Rf7 {[%clk 0:01:25]} 20. Nxd6 {[%clk 0:00:49]}  Qxd6 {[%clk 0:01:21]} 21. Bc4 {[%clk 0:00:49]}  Nf8 {[%clk 0:01:20]} 22. Bxf7+ {[%clk 0:00:39]}  Kxf7 {[%clk 0:01:21]} 23. O-O {[%clk 0:00:34]}  Kg8 {[%clk 0:00:56]} 24. Qh4 {[%clk 0:00:27]}  Bf5 {[%clk 0:00:43]} 25. d3 {[%clk 0:00:24]}  Nd7 {[%clk 0:00:38]} 26. g4 {[%clk 0:00:17]}  Be6 {[%clk 0:00:38]} 27. g5 {[%clk 0:00:14]}  f5 {[%clk 0:00:19]} 28. Re1 {[%clk 0:00:04]}  Re8 {[%clk 0:00:18]} 29. Qh6 {[%clk 0:00:03]}  Qf8 {[%clk 0:00:19]} 30. Qh4 {[%clk 0:00:03]}  Bf7 {[%clk 0:00:18]} 31. Ne5 {[%clk 0:00:03]}  Nxe5 {[%clk 0:00:18]} 32. Bxe5 {[%clk 0:00:04]}  Bd5 {[%clk 0:00:11]} 33. Re3 {[%clk 0:00:04]}  Qc5 {[%clk 0:00:11]} 34. Qf2 {[%clk 0:00:04]}  Bf7 {[%clk 0:00:09]} 35. Qe2 {[%clk 0:00:04]}  Qd5 {[%clk 0:00:09]} 36. d4 {[%clk 0:00:02]}  Qd7 {[%clk 0:00:06]} 37. c4 {[%clk 0:00:02]}  a6 {[%clk 0:00:06]} 38. Rh3 {[%clk 0:00:03]}  b5 {[%clk 0:00:06]} 39. Rxh7 {[%clk 0:00:03]}  Be6 {[%clk 0:00:03]} 40. Rxd7 {[%clk 0:00:02]}  Bxd7 {[%clk 0:00:04]} 41. Qh2 {[%clk 0:00:02]} 1-0


[Site "https://www.chess.com"]

[Event "Titled Tuesday Blitz December 20 Late 2022"]
[White "Tarnowska, Aleksandra"]
[Black "ArchibaldCerveza29"]
[WhiteFideId "1180967"]
[WhiteElo "1776"]
[BlackElo "2444"]
[Result "1/2-1/2"]
[Round "02"]
[TimeControl "180+1"]
[Date "2022.12.21"]
[WhiteClock "0:00:11"]
[BlackClock "0:00:18"]

1. e4 {[%clk 0:03:00]}  e5 {[%clk 0:02:58]} 2. Nf3 {[%clk 0:03:00]}  Nc6 {[%clk 0:02:58]} 3. Bb5 {[%clk 0:03:01]}  g6 {[%clk 0:02:58]} 4. O-O {[%clk 0:02:57]}  Bg7 {[%clk 0:02:57]} 5. c3 {[%clk 0:02:58]}  a6 {[%clk 0:02:57]} 6. Ba4 {[%clk 0:02:57]}  Nge7 {[%clk 0:02:57]} 7. d4 {[%clk 0:02:57]}  exd4 {[%clk 0:02:58]} 8. cxd4 {[%clk 0:02:58]}  b5 {[%clk 0:02:59]} 9. Bb3 {[%clk 0:02:55]}  d6 {[%clk 0:02:59]} 10. Nc3 {[%clk 0:02:45]}  O-O {[%clk 0:02:58]} 11. Nd5 {[%clk 0:02:41]}  Bg4 {[%clk 0:02:57]} 12. Nxe7+ {[%clk 0:02:37]}  Qxe7 {[%clk 0:02:48]} 13. Bd5 {[%clk 0:02:37]}  Qd7 {[%clk 0:02:26]} 14. Bxc6 {[%clk 0:02:34]}  Qxc6 {[%clk 0:02:25]} 15. d5 {[%clk 0:02:31]}  Qd7 {[%clk 0:02:20]} 16. h3 {[%clk 0:02:28]}  Bxf3 {[%clk 0:02:16]} 17. Qxf3 {[%clk 0:02:29]}  Rfe8 {[%clk 0:02:15]} 18. Qd3 {[%clk 0:02:07]}  c5 {[%clk 0:02:11]} 19. dxc6 {[%clk 0:02:04]}  Qxc6 {[%clk 0:02:09]} 20. f3 {[%clk 0:02:00]}  Rad8 {[%clk 0:02:06]} 21. Rd1 {[%clk 0:01:52]}  b4 {[%clk 0:01:45]} 22. Rb1 {[%clk 0:01:43]}  a5 {[%clk 0:01:18]} 23. Bg5 {[%clk 0:01:36]}  Rd7 {[%clk 0:01:09]} 24. Be3 {[%clk 0:01:10]}  Qa4 {[%clk 0:00:48]} 25. a3 {[%clk 0:01:01]}  Red8 {[%clk 0:00:42]} 26. axb4 {[%clk 0:00:57]}  Qxb4 {[%clk 0:00:39]} 27. Bd4 {[%clk 0:00:40]}  Bxd4+ {[%clk 0:00:29]} 28. Qxd4 {[%clk 0:00:41]}  Qxd4+ {[%clk 0:00:30]} 29. Rxd4 {[%clk 0:00:42]}  d5 {[%clk 0:00:30]} 30. Rbd1 {[%clk 0:00:42]}  Rb7 {[%clk 0:00:28]} 31. Rxd5 {[%clk 0:00:42]}  Rxd5 {[%clk 0:00:24]} 32. Rxd5 {[%clk 0:00:43]}  Rxb2 {[%clk 0:00:24]} 33. Rxa5 {[%clk 0:00:43]}  Kg7 {[%clk 0:00:25]} 34. Ra6 {[%clk 0:00:40]}  h5 {[%clk 0:00:26]} 35. Kh2 {[%clk 0:00:39]}  h4 {[%clk 0:00:23]} 36. Rc6 {[%clk 0:00:35]}  Ra2 {[%clk 0:00:22]} 37. Rc4 {[%clk 0:00:30]}  Kh6 {[%clk 0:00:21]} 38. e5 {[%clk 0:00:21]}  Kg5 {[%clk 0:00:20]} 39. Rc7 {[%clk 0:00:16]}  Kf5 {[%clk 0:00:19]} 40. Rxf7+ {[%clk 0:00:16]}  Kxe5 {[%clk 0:00:20]} 41. f4+ {[%clk 0:00:12]}  Ke6 {[%clk 0:00:20]} 42. Rh7 {[%clk 0:00:12]}  Kf5 {[%clk 0:00:17]} 43. Rxh4 {[%clk 0:00:12]}  Rb2 {[%clk 0:00:17]} 44. Rg4 {[%clk 0:00:12]}  Ra2 {[%clk 0:00:16]} 45. Rh4 {[%clk 0:00:12]}  Rb2 {[%clk 0:00:16]} 46. Kg3 {[%clk 0:00:12]}  Rb3+ {[%clk 0:00:16]} 47. Kf2 {[%clk 0:00:11]}  Rb2+ {[%clk 0:00:17]} 48. Kg3 {[%clk 0:00:11]}  Rb3+ {[%clk 0:00:17]} 49. Kh2 {[%clk 0:00:11]}  Rb2 {[%clk 0:00:18]} 1/2-1/2


[Site "https://www.chess.com"]

[Event "Titled Tuesday Blitz December 20 Late 2022"]
[White "Tworuszka, Michal"]
[Black "Piliczewski, Bogusz"]
[WhiteFideId "1117858"]
[BlackFideId "1104144"]
[WhiteElo "2419"]
[BlackElo "1896"]
[Result "0-1"]
[Round "02"]
[TimeControl "180+1"]
[Date "2022.12.21"]
[WhiteClock "0:00:01"]
[BlackClock "0:00:12"]

1. d4 {[%clk 0:02:48]}  d5 {[%clk 0:02:58]} 2. c4 {[%clk 0:02:48]}  c6 {[%clk 0:02:58]} 3. Nf3 {[%clk 0:02:48]}  Nf6 {[%clk 0:02:58]} 4. Nc3 {[%clk 0:02:48]}  e6 {[%clk 0:02:58]} 5. Bg5 {[%clk 0:02:47]}  Nbd7 {[%clk 0:02:58]} 6. e3 {[%clk 0:02:46]}  Qa5 {[%clk 0:02:59]} 7. Nd2 {[%clk 0:02:44]}  Bb4 {[%clk 0:02:57]} 8. Qc2 {[%clk 0:02:44]}  O-O {[%clk 0:02:57]} 9. Bh4 {[%clk 0:02:34]}  c5 {[%clk 0:02:51]} 10. Nb3 {[%clk 0:02:29]}  Qc7 {[%clk 0:02:35]} 11. dxc5 {[%clk 0:02:26]}  dxc4 {[%clk 0:02:28]} 12. Bxc4 {[%clk 0:02:24]}  Bxc5 {[%clk 0:02:28]} 13. Nxc5 {[%clk 0:02:21]}  Qxc5 {[%clk 0:02:27]} 14. Be2 {[%clk 0:02:15]}  b6 {[%clk 0:02:13]} 15. Bf3 {[%clk 0:02:11]}  Rb8 {[%clk 0:02:12]} 16. Bg3 {[%clk 0:02:03]}  e5 {[%clk 0:02:11]} 17. O-O {[%clk 0:02:01]}  Bb7 {[%clk 0:02:01]} 18. Bxb7 {[%clk 0:01:37]}  Rxb7 {[%clk 0:02:01]} 19. Rfd1 {[%clk 0:01:37]}  Rc8 {[%clk 0:01:57]} 20. Qf5 {[%clk 0:01:29]}  Qe7 {[%clk 0:01:43]} 21. h3 {[%clk 0:01:08]}  Re8 {[%clk 0:01:33]} 22. Rd2 {[%clk 0:01:02]}  Nf8 {[%clk 0:01:18]} 23. Bh4 {[%clk 0:01:00]}  Rbb8 {[%clk 0:01:00]} 24. Nd5 {[%clk 0:00:56]}  Qe6 {[%clk 0:00:53]} 25. Nxf6+ {[%clk 0:00:51]}  gxf6 {[%clk 0:00:53]} 26. Qxf6 {[%clk 0:00:50]}  Qxf6 {[%clk 0:00:52]} 27. Bxf6 {[%clk 0:00:50]}  Ng6 {[%clk 0:00:47]} 28. Rad1 {[%clk 0:00:34]}  h5 {[%clk 0:00:47]} 29. h4 {[%clk 0:00:33]}  Rbc8 {[%clk 0:00:43]} 30. e4 {[%clk 0:00:20]}  Nf4 {[%clk 0:00:41]} 31. g3 {[%clk 0:00:18]}  Ng6 {[%clk 0:00:34]} 32. Kg2 {[%clk 0:00:17]}  Nf8 {[%clk 0:00:32]} 33. Rd5 {[%clk 0:00:15]}  Ng6 {[%clk 0:00:29]} 34. Rd7 {[%clk 0:00:13]}  Rc2 {[%clk 0:00:29]} 35. Rxa7 {[%clk 0:00:11]}  Rxb2 {[%clk 0:00:28]} 36. Rdd7 {[%clk 0:00:11]}  Rf8 {[%clk 0:00:27]} 37. Be7 {[%clk 0:00:08]}  Nxe7 {[%clk 0:00:26]} 38. Rxe7 {[%clk 0:00:08]}  Rb5 {[%clk 0:00:26]} 39. a4 {[%clk 0:00:06]}  Rc5 {[%clk 0:00:25]} 40. Rab7 {[%clk 0:00:04]}  Rc4 {[%clk 0:00:22]} 41. Rxe5 {[%clk 0:00:03]}  Rxa4 {[%clk 0:00:22]} 42. Rg5+ {[%clk 0:00:03]}  Kh7 {[%clk 0:00:20]} 43. Rxh5+ {[%clk 0:00:03]}  Kg6 {[%clk 0:00:20]} 44. Rg5+ {[%clk 0:00:03]}  Kh7 {[%clk 0:00:18]} 45. Rxb6 {[%clk 0:00:03]}  Rxe4 {[%clk 0:00:16]} 46. Rf6 {[%clk 0:00:03]}  Re7 {[%clk 0:00:15]} 47. h5 {[%clk 0:00:02]}  Rg8 {[%clk 0:00:14]} 48. Rxg8 {[%clk 0:00:01]}  Kxg8 {[%clk 0:00:15]} 49. g4 {[%clk 0:00:02]}  Kg7 {[%clk 0:00:15]} 50. g5 {[%clk 0:00:02]}  Re5 {[%clk 0:00:14]} 51. f4 {[%clk 0:00:01]}  Re2+ {[%clk 0:00:13]} 52. Kg3 {[%clk 0:00:02]}  Re1 {[%clk 0:00:13]} 53. Kg4 {[%clk 0:00:02]}  Rg1+ {[%clk 0:00:13]} 54. Kf5 {[%clk 0:00:02]}  Rh1 {[%clk 0:00:13]} 55. h6+ {[%clk 0:00:02]}  Kf8 {[%clk 0:00:13]} 56. Ra6 {[%clk 0:00:02]}  Rb1 {[%clk 0:00:12]} 57. Ra8+ {[%clk 0:00:01]}  Ke7 {[%clk 0:00:12]} 0-1


[Site "https://www.chess.com"]

[Event "Titled Tuesday Blitz December 20 Late 2022"]
[White "Tymrakiewicz, Rafal"]
[Black "Araujo, Everson De Moura"]
[WhiteFideId "1108832"]
[BlackFideId "22737197"]
[WhiteElo "2139"]
[BlackElo "2035"]
[Result "1-0"]
[Round "02"]
[TimeControl "180+1"]
[Date "2022.12.21"]
[WhiteClock "0:01:02"]
[BlackClock "0:00:03"]

1. d4 {[%clk 0:03:00]}  d5 {[%clk 0:02:59]} 2. Nf3 {[%clk 0:03:00]}  Nf6 {[%clk 0:02:59]} 3. Bg5 {[%clk 0:02:59]}  Bf5 {[%clk 0:02:51]} 4. e3 {[%clk 0:02:58]}  e6 {[%clk 0:02:35]} 5. c4 {[%clk 0:02:58]}  c6 {[%clk 0:02:33]} 6. Nc3 {[%clk 0:02:58]}  Nbd7 {[%clk 0:02:26]} 7. Qb3 {[%clk 0:02:50]}  Rb8 {[%clk 0:02:23]} 8. Be2 {[%clk 0:02:33]}  Be7 {[%clk 0:02:22]} 9. O-O {[%clk 0:02:33]}  O-O {[%clk 0:02:20]} 10. Rfd1 {[%clk 0:02:33]}  h6 {[%clk 0:02:19]} 11. Bh4 {[%clk 0:02:32]}  Ne4 {[%clk 0:02:18]} 12. Bxe7 {[%clk 0:02:30]}  Qxe7 {[%clk 0:02:19]} 13. Nxe4 {[%clk 0:02:29]}  Bxe4 {[%clk 0:02:17]} 14. Rac1 {[%clk 0:02:28]}  dxc4 {[%clk 0:02:12]} 15. Qxc4 {[%clk 0:02:26]}  Bd5 {[%clk 0:02:11]} 16. Qa4 {[%clk 0:02:26]}  a6 {[%clk 0:02:00]} 17. a3 {[%clk 0:02:25]}  Nf6 {[%clk 0:01:57]} 18. Ne5 {[%clk 0:02:21]}  Ne4 {[%clk 0:01:46]} 19. f3 {[%clk 0:02:14]}  Nd6 {[%clk 0:01:28]} 20. e4 {[%clk 0:02:09]}  b5 {[%clk 0:01:19]} 21. Qxa6 {[%clk 0:02:01]}  Ra8 {[%clk 0:01:00]} 22. Qb6 {[%clk 0:01:55]}  Bb3 {[%clk 0:00:31]} 23. Nxc6 {[%clk 0:01:53]}  Qg5 {[%clk 0:00:25]} 24. d5 {[%clk 0:01:38]}  Bxd1 {[%clk 0:00:19]} 25. Rxd1 {[%clk 0:01:39]}  Nc4 {[%clk 0:00:17]} 26. Bxc4 {[%clk 0:01:35]}  bxc4 {[%clk 0:00:18]} 27. d6 {[%clk 0:01:34]}  Rfc8 {[%clk 0:00:15]} 28. Ne7+ {[%clk 0:01:33]}  Kh8 {[%clk 0:00:12]} 29. Nxc8 {[%clk 0:01:33]}  Rxc8 {[%clk 0:00:13]} 30. d7 {[%clk 0:01:32]}  Rd8 {[%clk 0:00:11]} 31. Qd4 {[%clk 0:01:29]}  h5 {[%clk 0:00:08]} 32. Qd2 {[%clk 0:01:13]}  Qc5+ {[%clk 0:00:07]} 33. Qd4 {[%clk 0:01:13]}  Qg5 {[%clk 0:00:05]} 34. Qxc4 {[%clk 0:01:07]}  Qe3+ {[%clk 0:00:04]} 35. Kf1 {[%clk 0:01:06]}  Qf4 {[%clk 0:00:03]} 36. Qc8 {[%clk 0:01:02]} 1-0


[Site "https://www.chess.com"]